bitfinex/quotes_ETHUSD_20251125
["timestamp","ask_amount","ask_price","bid_price","bid_amount"]
[1764095053774,0.99939411,2956.7,2956.6,0.001]
[1764095053962,1.21439411,2956.7,2956.6,0.001]
[1764095055663,5.05964312,2956.7,2956.6,0.001]
[1764095055862,1.67749411,2956.7,2956.6,0.001]
[1764095056262,5.05964312,2956.7,2956.6,0.001]
[1764095056468,1.67749411,2956.7,2956.6,0.001]
[1764095056666,5.05964312,2956.7,2956.6,0.001]
[1764095058174,0.99939411,2956.7,2956.6,0.001]
[1764095058368,1.67749411,2956.7,2956.6,0.001]
[1764095058559,5.05964312,2956.7,2956.6,0.001]
[1764095060077,1.21539411,2956.7,2956.6,0.001]
[1764095060376,4.00984817,2957.4,2956.6,0.9804]
[1764095060577,0.94159411,2957.3,2956.6,0.9804]
[1764095060879,0.4929,2957.7,2956.7,7.25989802]
[1764095061072,0.216,2957.6,2956.8,0.4956]
[1764095061471,0.216,2957.5,2956.8,0.4956]
[1764095062957,0.216,2957.5,2956.9,3.38192025]
[1764095063159,3.59725598,2957.5,2956.9,3.38192025]
[1764095063357,0.216,2957.5,2956.9,3.38192025]
[1764095063755,0.216,2957.5,2956.9,6.7638405]
[1764095064554,0.216,2957.5,2957.0,0.4956]
[1764095064762,0.216,2957.5,2957.1,0.1811]
[1764095065277,0.216,2957.5,2957.2,3.38157716]
[1764095065466,0.216,2957.5,2957.1,4.05833752]
[1764095066282,0.216,2957.5,2957.1,3.56273752]
[1764095068072,0.0575,2957.2,2956.6,0.001]
[1764095068276,0.216,2957.1,2956.7,3.38214901]
[1764095069128,0.216,2957.1,2956.7,7.25989802]
[1764095069279,0.216,2957.1,2956.8,0.4956]
[1764095069618,0.216,2957.1,2957.0,0.4838]
[1764095070178,0.85529411,2957.8,2957.0,7.74301176]
[1764095070413,0.216,2957.7,2957.1,0.6767]
[1764095071016,0.216,2957.7,2957.2,0.4956]
[1764095071212,0.31320309,2957.6,2957.2,0.4956]
[1764095071379,0.216,2957.7,2957.6,0.4838]
[1764095071576,0.5292782,2957.7,2957.6,0.4838]
[1764095071805,0.5858782,2957.7,2957.2,0.4956]
[1764095072006,0.3132782,2957.6,2957.2,0.4956]
[1764095072191,0.31387344,2957.5,2957.3,3.38146282]
[1764095072398,0.216,2957.7,2957.3,3.38146282]
[1764095072592,0.31387344,2957.6,2957.3,3.38146282]
[1764095072808,0.31387344,2957.5,2957.3,3.38146282]
[1764095073112,0.216,2957.7,2957.3,3.38146282]
[1764095073319,0.31393139,2957.6,2957.3,3.38146282]
[1764095073523,0.31393139,2957.5,2957.3,3.38146282]
[1764095073722,0.31393139,2957.4,2957.3,3.38146282]
[1764095074218,0.31393139,2957.4,2957.3,3.86526282]
[1764095074418,0.31393139,2957.4,2957.3,4.36086282]
[1764095074718,0.77323139,2957.4,2956.7,6.76429802]
[1764095075015,0.53083139,2957.3,2956.7,7.25989802]
[1764095075174,0.53083139,2957.3,2956.7,6.76429802]
[1764095075175,0.31393139,2957.2,2956.7,6.76429802]
[1764095075414,0.31393139,2957.1,2956.8,0.4956]
[1764095075618,0.31393139,2957.0,2956.8,0.4956]
[1764095075852,0.216,2957.3,2956.8,0.4956]
[1764095076031,0.31492773,2957.2,2956.8,0.4956]
[1764095076362,0.31492773,2957.1,2956.9,6.7638405]
[1764095076561,0.31492773,2957.0,2956.9,3.38192025]
[1764095076715,0.31492773,2957.0,2956.9,3.87752025]
[1764095077063,0.31492773,2957.0,2956.7,3.38203867]
[1764095077223,0.72686702,2957.6,2956.7,6.76418768]
[1764095077224,0.53092773,2956.9,2956.7,6.76418768]
[1764095077425,0.31492773,2956.8,2956.7,3.38203867]
[1764095077859,0.31492773,2956.8,2956.7,3.86583867]
[1764095078445,0.31492773,2956.8,2956.7,4.36143867]
[1764095079021,0.31492773,2956.8,2956.7,3.86583867]
[1764095079519,0.31492773,2956.8,2956.7,3.38203867]
[1764095079921,0.37142773,2956.8,2956.6,0.001]
[1764095080122,0.31492773,2956.7,2956.6,3.38325189]
[1764095080539,0.31492773,2956.7,2956.6,0.001]
[1764095080917,0.37582773,2956.7,2956.6,0.001]
[1764095081126,1.10375681,2956.7,2956.6,0.001]
[1764095082333,1.25918381,2956.7,2956.6,0.9804]
[1764095082533,1.25918381,2956.7,2956.6,4.36266341]
[1764095082965,0.26492773,2956.7,2956.6,4.36266341]
[1764095083270,0.53742773,2956.7,2956.6,0.001]
[1764095083569,1.20942606,2956.7,2956.6,0.001]
[1764095083766,1.20942606,2956.7,2956.6,0.4848]
[1764095084065,1.20942606,2956.7,2956.6,3.86706341]
[1764095084270,1.20942606,2956.7,2956.6,0.4848]
[1764095085145,1.66872606,2956.7,2956.6,0.001]
[1764095085345,1.45272606,2956.7,2956.6,0.001]
[1764095085567,1.66872606,2956.7,2956.6,0.001]
[1764095085772,1.45272606,2956.7,2956.6,0.001]
[1764095085944,1.66872606,2956.7,2956.6,0.001]
[1764095086270,1.75852606,2956.7,2956.6,0.001]
[1764095087239,5.14067507,2956.7,2956.6,0.001]
[1764095087661,5.86626918,2956.7,2956.6,0.001]
[1764095087855,6.77569462,2956.7,2956.6,0.001]
[1764095088457,13.14569462,2956.7,2956.6,0.001]
[1764095088656,18.106347,2956.3,2954.9,0.001]
[1764095088855,0.405504,2955.8,2954.9,0.001]
[1764095089055,1.40776492,2955.4,2954.9,0.001]
[1764095089371,0.92049833,2955.4,2954.9,0.001]
[1764095089672,1.41339833,2955.4,2954.9,0.001]
[1764095090279,1.13649833,2955.4,2954.9,0.001]
[1764095090645,1.63249833,2955.4,2954.9,0.001]
[1764095090853,5.01613506,2955.4,2954.9,0.001]
[1764095091268,5.74172917,2955.4,2954.9,0.001]
[1764095091471,1.64609244,2955.4,2954.9,0.001]
[1764095091677,0.94159411,2955.4,2955.1,0.195]
[1764095092251,0.216,2955.4,2955.1,0.195]
[1764095092464,0.216,2955.4,2955.3,0.9905]
[1764095094075,0.216,2955.4,2955.3,0.496]
[1764095094953,0.216,2955.4,2955.3,0.001]
[1764095095161,0.216,2955.4,2955.3,0.496]
[1764095095550,0.216,2955.4,2955.3,0.9905]
[1764095096974,0.216,2955.4,2955.3,0.496]
[1764095098555,3.65603673,2955.4,2955.3,0.001]
[1764095098962,0.2724,2955.4,2955.3,0.001]
[1764095099165,3.65603673,2955.4,2955.3,0.001]
[1764095100152,4.11813673,2955.4,2955.3,0.001]
[1764095100352,4.84373084,2955.4,2955.3,0.001]
[1764095100686,4.84373084,2955.4,2955.0,0.001]
[1764095100687,1.13109811,2955.3,2955.0,0.001]
[1764095100863,0.0332,2955.1,2955.0,0.001]
[1764095101070,0.75364815,2955.1,2955.0,0.001]
[1764095101378,1.9416584,2955.1,2955.0,0.001]
[1764095101566,6.05123274,2955.1,2955.0,0.001]
[1764095101884,4.45771849,2955.1,2955.0,0.001]
[1764095102084,1.43689411,2955.1,2955.0,0.001]
[1764095102287,4.82087434,2955.1,2955.0,0.001]
[1764095102584,0.72559411,2955.1,2955.0,0.001]
[1764095102890,0.94159411,2955.1,2955.0,0.001]
[1764095103955,0.216,2955.1,2955.0,0.001]
[1764095104986,0.216,2955.1,2955.0,0.468]
[1764095105285,0.216,2955.1,2955.0,0.9464]
[1764095106054,0.216,2955.1,2955.0,4.33049475]
[1764095106272,0.216,2955.1,2955.0,0.468]
[1764095106476,3.38352032,2955.6,2955.0,4.33049475]
[1764095106663,0.216,2955.5,2955.3,0.467]
[1764095107584,0.216,2955.5,2955.1,0.664]
[1764095107789,3.59958264,2955.5,2955.1,0.664]
[1764095109209,3.59958264,2955.5,2955.0,3.38509157]
[1764095109210,0.0889,2955.2,2955.0,0.001]
[1764095109488,0.216,2955.1,2955.0,0.001]
[1764095109892,0.216,2955.1,2955.0,0.9464]
[1764095111092,0.216,2955.1,2955.0,0.468]
[1764095111291,0.216,2955.1,2955.0,0.001]
[1764095112295,0.216,2955.1,2955.0,4.33049475]
[1764095112796,0.216,2955.1,2955.0,0.9464]
[1764095113028,5.18841717,2955.1,2955.0,0.001]
[1764095113227,5.59392117,2955.1,2955.0,0.001]
[1764095113433,6.32144144,2955.1,2955.0,0.001]
[1764095114328,1.34613694,2955.1,2955.0,0.001]
[1764095114533,0.94159411,2955.1,2955.0,0.001]
[1764095114717,0.72559411,2955.1,2955.0,0.468]
[1764095114904,0.216,2955.1,2955.0,0.468]
[1764095115105,0.216,2955.1,2955.0,0.001]
[1764095115322,0.3049,2955.1,2955.0,0.001]
[1764095115634,0.7632,2955.1,2955.0,0.001]
[1764095116346,0.002,2955.3,2955.0,0.468]
[1764095116644,0.216,2955.2,2955.1,0.1856]
[1764095116817,0.216,2955.2,2955.1,0.664]
[1764095117154,0.002,2955.3,2955.1,1.131]
[1764095117353,0.216,2955.2,2955.1,0.1856]
[1764095117505,0.216,2955.2,2955.1,0.6526]
[1764095118304,0.002,2955.3,2955.2,3.38386572]
[1764095118505,0.002,2955.3,2955.2,0.9454]
[1764095119444,0.002,2955.3,2955.0,0.001]
[1764095119944,0.002,2955.3,2955.0,3.86347331]
[1764095120141,0.002,2955.3,2955.2,0.467]
[1764095120341,0.002,2955.3,2955.2,3.85086572]
[1764095120520,0.002,2955.6,2955.3,0.501504]
[1764095120721,0.002,2955.6,2955.5,0.4704]
[1764095121159,0.002,2955.6,2955.5,0.9225]
[1764095121657,0.002,2955.6,2955.3,0.405504]
[1764095121836,0.002,2955.6,2955.5,0.4704]
[1764095122034,0.002,2955.6,2955.2,3.83596572]
[1764095122352,0.002,2955.6,2955.3,0.4521]
[1764095123158,0.002,2955.6,2955.1,3.38393449]
[1764095123353,0.002,2955.6,2955.2,0.4521]
[1764095123557,0.002,2955.6,2955.1,3.38393449]
[1764095123724,0.002,2955.6,2955.1,0.4521]
[1764095123921,0.002,2955.6,2955.1,3.38394319]
[1764095124126,0.002,2955.6,2955.2,0.4521]
[1764095124945,0.002,2955.6,2955.1,3.38392528]
[1764095124946,0.002,2955.6,2955.0,0.001]
[1764095125263,0.101,2955.1,2955.0,0.001]
[1764095125564,0.317,2955.1,2955.0,0.001]
[1764095125856,0.7635,2955.1,2955.0,0.001]
[1764095126053,0.317,2955.1,2955.0,0.001]
[1764095126258,0.216,2955.1,2955.0,0.001]
[1764095126457,0.4485,2955.6,2955.0,0.001]
[1764095126658,0.53336064,2955.5,2955.0,0.4714]
[1764095126861,0.31636064,2955.4,2955.0,0.4714]
[1764095127025,0.002,2955.6,2955.1,0.6361]
[1764095127026,0.217,2955.3,2955.1,0.6361]
[1764095127432,0.217,2955.3,2955.2,0.4704]
[1764095128256,0.318,2955.3,2955.0,0.001]
[1764095129258,3.70177888,2955.3,2955.0,0.001]
[1764095130144,6.98455776,2955.3,2955.0,0.001]
[1764095130345,0.101,2955.1,2955.0,0.001]
[1764095130855,0.5475,2955.1,2955.0,0.001]
[1764095131249,3.93148023,2955.1,2955.0,0.001]
[1764095131652,4.24803136,2955.1,2955.0,0.001]
[1764095131868,4.52712547,2955.1,2955.0,0.001]
[1764095132574,4.97362547,2955.1,2955.0,0.001]
[1764095132958,5.19062547,2955.1,2955.0,0.001]
[1764095136752,5.91964542,2955.1,2955.0,0.001]
[1764095136950,6.32514942,2955.1,2955.0,0.001]
[1764095138983,5.70264542,2955.1,2955.0,0.001]
[1764095139156,4.64212547,2955.1,2955.0,0.001]
[1764095139556,4.74652547,2955.1,2955.0,0.001]
[1764095139775,4.69652547,2955.1,2955.0,0.001]
[1764095141256,5.13962547,2955.1,2955.0,0.001]
[1764095142485,4.69652547,2955.1,2955.0,0.001]
[1764095143195,4.69312547,2955.1,2955.0,0.001]
[1764095144086,5.13962547,2955.1,2955.0,0.001]
[1764095144689,3.565,2954.2,2952.5,0.184]
[1764095144880,0.405504,2953.8,2952.5,0.184]
[1764095145060,0.405504,2953.6,2952.5,0.184]
[1764095145261,0.31606553,2953.5,2952.5,0.184]
[1764095145558,0.31606553,2953.5,2952.0,0.001]
[1764095145559,0.099,2952.6,2952.0,0.001]
[1764095145858,6.9909204,2952.5,2952.0,0.001]
[1764095146358,6.9909204,2952.5,2952.0,0.4531]
[1764095146765,6.9909204,2952.5,2952.0,0.001]
[1764095146968,6.7739204,2952.5,2952.0,0.4531]
[1764095147178,0.217,2952.4,2952.0,0.4531]
[1764095147477,0.217,2952.4,2952.0,0.001]
[1764095147677,6.77437928,2952.3,2952.0,0.001]
[1764095148384,0.72559411,2952.2,2952.0,0.001]
[1764095149174,0.3187,2952.1,2952.0,0.001]
[1764095149767,4.87821323,2952.1,2952.0,0.001]
[1764095150545,4.43171323,2952.1,2952.0,0.001]
[1764095151004,4.87821323,2952.1,2952.0,0.001]
[1764095151170,4.66121323,2952.1,2952.0,0.001]
[1764095151585,4.21471323,2952.1,2952.0,0.001]
[1764095151768,4.33001323,2952.1,2952.0,0.001]
[1764095152381,4.43521323,2952.1,2952.0,0.001]
[1764095153404,4.33001323,2952.1,2952.0,0.001]
[1764095155305,0.72559411,2952.1,2952.0,0.4652]
[1764095155476,4.33001323,2952.1,2952.0,0.4652]
[1764095156107,0.94259411,2952.1,2952.0,0.4652]
[1764095156508,4.33001323,2952.1,2952.0,0.4652]
[1764095156706,0.94259411,2952.1,2952.0,0.4652]
[1764095157004,0.72559411,2952.1,2952.0,0.4652]
[1764095157187,0.94259411,2952.1,2952.0,0.9486]
[1764095159413,0.72559411,2952.1,2952.0,0.9486]
[1764095159617,0.94259411,2952.1,2952.0,0.9486]
[1764095159914,0.217,2952.1,2952.0,0.9486]
[1764095160317,3.60441912,2952.1,2952.0,0.4652]
[1764095160814,3.66581912,2952.1,2952.0,0.001]
[1764095161684,3.60441912,2952.1,2952.0,0.001]
[1764095162625,4.87781323,2952.1,2952.0,0.001]
[1764095162834,4.39141323,2952.1,2952.0,0.001]
[1764095163032,4.87781323,2952.1,2952.0,0.001]
[1764095163532,20.81120923,2952.1,2952.0,0.001]
[1764095163934,27.18120923,2952.1,2952.0,0.001]
[1764095164133,21.34904123,2952.1,2952.0,0.001]
[1764095164347,18.34656623,2952.1,2952.0,0.001]
[1764095164708,17.92454923,2952.1,2952.0,0.001]
[1764095164938,14.73419523,2952.1,2952.0,0.001]
[1764095165240,14.30030923,2952.1,2952.0,0.001]
[1764095165446,10.76141323,2952.1,2952.0,0.001]
[1764095165817,11.24781323,2952.1,2952.0,0.001]
[1764095166535,16.80385623,2952.1,2952.0,0.001]
[1764095166738,17.20936023,2952.1,2952.0,0.001]
[1764095166938,21.60175423,2952.1,2952.0,0.001]
[1764095167344,21.91495178,2952.1,2952.0,0.001]
[1764095167516,21.61315978,2952.1,2952.0,0.001]
[1764095167827,11.96651478,2952.1,2952.0,0.001]
[1764095168036,19.69457978,2952.1,2952.0,0.001]
[1764095168235,20.41676716,2952.1,2952.0,0.001]
[1764095168636,12.461497,2951.8,2951.7,0.001]
[1764095168824,8.54018056,2951.8,2951.7,0.001]
[1764095169024,13.18775856,2951.8,2951.7,0.001]
[1764095169227,12.86675856,2951.8,2951.7,0.001]
[1764095169819,9.24788056,2951.8,2951.7,0.001]
[1764095170167,15.57416456,2951.8,2951.7,0.001]
[1764095170623,23.68709202,2951.8,2951.7,0.001]
[1764095171026,31.47855102,2951.8,2951.7,0.001]
[1764095171246,32.3807899,2951.8,2951.7,0.001]
[1764095171641,29.1448259,2951.8,2951.7,0.001]
[1764095171827,25.6807479,2951.8,2951.7,0.001]
[1764095172128,23.46543302,2951.8,2951.7,0.001]
[1764095172531,18.26733234,2951.8,2951.7,0.001]
[1764095172727,17.36119395,2951.8,2951.7,0.001]
[1764095173152,18.47819395,2951.8,2951.7,0.001]
[1764095173329,19.69395887,2951.8,2951.7,0.001]
[1764095174061,13.85140887,2951.8,2951.7,0.001]
[1764095174250,17.35119395,2951.8,2951.7,0.001]
[1764095174448,17.35119395,2951.8,2951.7,4.184e-05]
[1764095175156,19.01479395,2951.8,2951.7,4.184e-05]
[1764095175367,17.19519395,2951.8,2951.7,4.184e-05]
[1764095176027,2.368479,2951.6,2951.4,0.001]
[1764095176224,3.45756145,2951.5,2951.4,0.001]
[1764095176621,6.79176919,2951.5,2951.4,0.001]
[1764095176852,5.63710054,2951.5,2951.4,0.4723]
[1764095177057,5.63710054,2951.5,2951.4,0.9427]
[1764095177058,1.94572214,2951.5,2951.4,0.9427]
[1764095177260,1.25218245,2951.5,2951.4,0.9427]
[1764095177561,5.3658843,2951.5,2951.4,0.001]
[1764095178128,5.3658843,2951.5,2951.4,0.4723]
[1764095179759,5.3658843,2951.5,2951.4,0.9427]
[1764095181057,5.36919366,2951.5,2951.4,0.9427]
[1764095183383,6.27973335,2951.5,2951.4,0.9427]
[1764095184075,5.36919366,2951.5,2951.4,0.9427]
[1764095184579,1.98108592,2951.5,2951.4,0.9427]
[1764095184737,1.76408592,2951.5,2951.4,0.9427]
[1764095184938,1.98108592,2951.5,2951.4,0.9427]
[1764095186185,1.25549181,2951.5,2951.4,0.9427]
[1764095186466,0.53350691,2951.5,2951.4,0.9427]
[1764095186675,1.25549181,2951.5,2951.4,0.9427]
[1764095186874,0.53350691,2951.5,2951.4,0.9427]
[1764095187042,1.25549181,2951.5,2951.4,0.9427]
[1764095187439,0.53350691,2951.5,2951.4,0.9427]
[1764095187664,1.25549181,2951.5,2951.4,0.9427]
[1764095187852,0.53350691,2951.5,2951.4,0.9427]
[1764095188052,1.25549181,2951.5,2951.4,0.9427]
[1764095188258,0.53350691,2951.5,2951.4,0.9427]
[1764095188453,1.25549181,2951.5,2951.4,0.9427]
[1764095188665,0.53350691,2951.5,2951.4,0.9427]
[1764095188977,0.53350691,2951.5,2951.4,4.33092253]
[1764095189557,1.21381035,2952.3,2951.4,4.33092253]
[1764095189558,0.91053969,2952.3,2951.4,7.71914506]
[1764095189876,1.26328408,2952.2,2951.5,0.4729]
[1764095190089,0.31667141,2952.1,2951.5,0.4729]
[1764095190258,0.91053969,2953.0,2952.3,3.38716608]
[1764095190579,1.04581425,2952.9,2952.3,3.38716608]
[1764095190780,1.04581425,2952.8,2952.4,0.4729]
[1764095190943,1.04581425,2952.7,2952.4,0.4729]
[1764095191275,0.31653003,2952.6,2952.4,0.4729]
[1764095191474,0.217,2952.8,2952.7,0.4797]
[1764095191677,0.53336048,2952.8,2952.7,0.4797]
[1764095191909,0.31636048,2952.8,2952.7,0.9526]
[1764095192262,1.04527544,2953.1,2952.7,4.33933078]
[1764095192491,0.53236048,2953.0,2952.8,0.4729]
[1764095192689,0.31636048,2952.9,2952.8,0.4729]
[1764095193087,0.31636048,2952.9,2952.8,0.9526]
[1764095193893,0.98156048,2952.9,2952.3,0.4729]
[1764095194092,0.31636048,2952.8,2952.3,0.4729]
[1764095194460,3.38673078,2952.7,2952.3,0.4729]
[1764095194664,0.216,2952.6,2952.3,0.4729]
[1764095195096,0.216,2952.6,2952.5,0.4797]
[1764095195622,0.216,2952.6,2952.5,0.9526]
[1764095196177,0.002,2952.8,2952.5,0.9526]
[1764095196496,0.002,2952.8,2952.2,0.1989]
[1764095196497,0.002,2952.8,2952.7,0.4797]
[1764095196666,0.218,2952.8,2952.7,0.4797]
[1764095196865,0.218,2952.8,2952.7,0.9526]
[1764095197065,0.218,2952.8,2952.2,0.6718]
[1764095197265,0.218,2952.8,2952.3,0.4729]
[1764095197780,0.218,2952.8,2952.7,0.4797]
[1764095198094,0.002,2952.8,2952.7,0.4797]
[1764095198298,0.218,2952.8,2952.7,0.9526]
[1764095199270,0.002,2952.8,2952.7,0.9526]
[1764095199474,0.218,2952.8,2952.7,0.9526]
[1764095199892,0.218,2952.8,2952.7,4.33933078]
[1764095200104,0.218,2952.8,2952.7,0.9526]
[1764095200407,0.002,2952.8,2952.7,0.9526]
[1764095200698,0.218,2952.8,2952.7,0.9526]
[1764095201218,0.3168,2952.8,2952.2,0.6718]
[1764095201415,0.3168,2952.8,2952.2,0.1989]
[1764095201774,0.218,2952.8,2952.3,0.4729]
[1764095202315,0.218,2952.8,2952.2,0.1989]
[1764095202316,0.6682,2952.8,2952.2,0.1989]
[1764095202599,3.38673078,2952.7,2952.2,0.1989]
[1764095202805,3.38673078,2952.7,2952.6,0.4797]
[1764095203032,4.72516407,2953.2,2952.6,0.4797]
[1764095203033,0.002,2953.4,2953.1,0.405504]
[1764095203300,0.002,2953.4,2953.3,0.6786]
[1764095203301,0.219,2953.4,2953.3,0.6786]
[1764095203475,0.219,2953.4,2953.3,1.1515]
[1764095204467,0.219,2953.4,2953.3,4.53754273]
[1764095206926,0.002,2953.4,2953.3,4.53754273]
[1764095212620,0.002,2953.4,2953.3,4.06464273]
[1764095212823,0.002,2953.4,2953.3,4.54104273]
[1764095220145,0.002,2953.4,2953.3,4.53559618]
[1764095221131,0.002,2953.4,2953.3,4.94110018]
[1764095222137,0.002,2953.4,2953.3,4.9749606]
[1764095222332,0.002,2953.4,2953.3,5.76269429]
[1764095224841,0.002,2953.4,2953.3,5.66669429]
[1764095226967,0.002,2953.4,2953.3,3.86574273]
[1764095227175,0.4961,2953.4,2952.2,0.1989]
[1764095227377,0.002,2953.4,2952.6,4.72516407]
[1764095227670,0.002,2953.4,2953.3,0.6785]
[1764095228264,0.002,2953.4,2953.3,1.1696]
[1764095228470,0.002,2953.4,2953.3,4.55564273]
[1764095228981,0.002,2953.4,2953.3,3.38604273]
[1764095229971,0.2758,2953.4,2953.0,3.87848372]
[1764095230181,0.7053,2953.4,2953.0,3.38738372]
[1764095230349,0.0621,2953.1,2953.0,0.001]
[1764095230949,0.37872051,2953.1,2953.0,0.001]
[1764095231668,0.0621,2953.1,2953.0,0.001]
[1764095232078,0.31673018,2953.2,2953.0,0.001]
[1764095232258,0.7096,2953.4,2953.0,0.001]
[1764095232457,0.31692398,2953.3,2953.0,0.001]
[1764095232657,0.218,2953.4,2953.0,0.001]
[1764095232852,0.31691333,2953.3,2953.1,0.6787]
[1764095233064,0.002,2953.4,2953.3,0.4909]
[1764095233469,0.002,2953.4,2953.3,1.01586042]
[1764095233666,0.002,2953.4,2953.3,0.982]
[1764095234690,0.002,2953.4,2953.3,4.36804273]
[1764095235484,0.002,2953.4,2953.3,4.40190315]
[1764095235789,0.002,2953.4,2953.3,4.36804273]
[1764095236083,0.002,2953.4,2953.3,5.62900126]
[1764095236250,0.002,2953.4,2953.3,5.59514084]
[1764095237687,0.002,2953.4,2953.3,5.49914084]
[1764095238583,0.002,2953.4,2953.3,5.09363684]
[1764095239265,0.002,2953.4,2953.3,3.87694273]
[1764095241394,0.002,2953.4,2953.3,4.33184273]
[1764095244180,0.002,2953.4,2953.3,4.77120715]
[1764095244504,0.002,2953.4,2953.3,4.73734673]
[1764095245577,0.002,2953.4,2953.3,5.46294084]
[1764095245915,0.002,2953.4,2953.3,5.46394084]
[1764095249203,0.002,2953.4,2953.3,5.05843684]
[1764095249404,0.002,2953.4,2953.3,4.60353684]
[1764095249606,0.5528,2953.4,2953.3,0.001]
[1764095249913,0.5528,2953.4,2953.3,3.38704273]
[1764095250085,0.5528,2953.4,2953.3,0.001]
[1764095251202,3.93872808,2953.4,2953.3,0.001]
[1764095251512,0.86953779,2953.4,2953.3,0.001]
[1764095251713,4.25546587,2953.4,2953.3,0.001]
[1764095252128,3.93872808,2953.4,2953.3,0.001]
[1764095252423,4.25540525,2953.4,2953.3,0.001]
[1764095254397,4.98099936,2953.4,2953.3,0.001]
[1764095254945,0.72559411,2953.3,2953.0,0.001]
[1764095255110,0.0048,2953.1,2953.0,0.001]
[1764095255316,7.41607128,2953.1,2953.0,0.001]
[1764095255509,7.90417128,2953.1,2953.0,0.001]
[1764095257060,11.29044333,2953.1,2953.0,0.001]
[1764095260462,11.50644333,2953.1,2953.0,0.001]
[1764095261777,11.29044333,2953.1,2953.0,0.001]
[1764095261950,8.12017128,2953.1,2953.0,0.001]
[1764095262149,11.18976616,2953.1,2953.0,0.001]
[1764095262345,7.31539411,2953.1,2953.0,0.001]
[1764095262566,7.09939411,2953.1,2953.0,0.001]
[1764095262746,7.31539411,2953.1,2953.0,0.001]
[1764095262952,7.80349411,2953.1,2953.0,0.001]
[1764095263867,7.31539411,2953.1,2953.0,0.001]
[1764095264063,7.80349411,2953.1,2953.0,0.001]
[1764095264506,11.18976616,2953.1,2953.0,0.001]
[1764095264867,7.80349411,2953.1,2953.0,0.001]
[1764095265205,11.18976616,2953.1,2953.0,0.001]
[1764095265604,6.5898,2953.1,2953.0,0.001]
[1764095265970,7.0779,2953.1,2953.0,0.001]
[1764095268603,10.46417205,2953.1,2953.0,0.001]
[1764095268799,7.0779,2953.1,2953.0,0.001]
[1764095269107,6.5898,2953.1,2953.0,0.001]
[1764095269329,9.97607205,2953.1,2953.0,0.001]
[1764095269517,10.46417205,2953.1,2953.0,0.001]
[1764095270230,11.18976616,2953.1,2953.0,0.001]
[1764095271344,11.50571036,2953.1,2953.0,0.001]
[1764095272304,7.63133831,2953.1,2953.0,0.001]
[1764095272843,7.62653831,2953.1,2953.0,0.4558]
[1764095273206,7.62653831,2953.1,2953.0,0.001]
[1764095273407,7.73043831,2953.1,2953.0,0.001]
[1764095274241,11.11671036,2953.1,2953.0,0.001]
[1764095274405,7.73043831,2953.1,2953.0,0.001]
[1764095274622,7.41449411,2953.1,2953.0,0.001]
[1764095274820,7.31059411,2953.1,2953.0,0.001]
[1764095275021,6.585,2953.1,2953.0,0.4558]
[1764095275859,7.0773,2953.1,2953.0,0.001]
[1764095276829,7.39370007,2953.1,2953.0,0.001]
[1764095277035,6.585,2953.1,2953.0,0.001]
[1764095277346,6.90161479,2953.1,2953.0,0.001]
[1764095278462,6.90161479,2953.1,2953.0,0.4558]
[1764095279355,7.00551479,2953.1,2953.0,0.001]
[1764095279578,7.45281479,2953.1,2953.0,0.001]
[1764095279764,6.90161479,2953.1,2953.0,0.001]
[1764095280068,0.002,2953.3,2953.0,7.75107344]
[1764095280262,0.002,2953.3,2953.2,0.6785]
[1764095280428,0.002,2953.3,2953.2,4.47016138]
[1764095280625,0.002,2953.3,2953.2,4.96396138]
[1764095281447,0.002,2953.3,2953.2,4.55845738]
[1764095282441,0.002,2953.3,2953.2,9.89722917]
[1764095282643,0.002,2953.4,2953.3,0.72559411]
[1764095282838,0.002,2953.6,2953.5,0.405504]
[1764095283146,0.002,2953.6,2953.5,1.382804]
[1764095284559,0.002,2953.6,2953.5,5.49421155]
[1764095284870,0.002,2953.6,2953.5,5.59021155]
[1764095285076,0.002,2953.9,2953.7,0.405504]
[1764095285266,0.002,2953.9,2953.8,1.70289411]
[1764095286673,0.002,2953.9,2953.8,5.08836367]
[1764095288880,0.002,2953.9,2953.8,5.49386767]
[1764095290452,0.002,2953.9,2953.8,3.86896956]
[1764095290652,0.002,2953.9,2953.8,4.36276956]
[1764095291280,0.002,2953.9,2953.8,3.86896956]
[1764095292073,0.002,2953.9,2953.8,4.36276956]
[1764095292482,0.002,2953.9,2953.8,3.86896956]
[1764095293183,0.002,2953.9,2953.3,3.38604273]
[1764095293184,0.7331,2953.9,2953.3,3.38604273]
[1764095293360,0.7331,2953.9,2953.3,6.77208546]
[1764095293361,0.1877,2953.9,2953.3,6.77208546]
[1764095293563,0.002,2953.9,2953.4,0.4938]
[1764095294686,0.002,2953.9,2953.5,6.77162688]
[1764095295260,0.002,2953.9,2953.5,7.26542688]
[1764095295461,0.002,2953.9,2953.5,6.77162688]
[1764095295662,0.1877,2953.9,2953.4,3.38587932]
[1764095295889,0.1877,2953.9,2953.4,6.7718074]
[1764095296089,0.6518,2953.9,2953.4,6.7718074]
[1764095297501,0.1877,2953.9,2953.4,0.4938]
[1764095298072,0.6518,2953.9,2953.3,6.7720522]
[1764095299100,0.6518,2953.9,2953.4,0.001]
[1764095299300,0.216,2953.8,2953.4,0.001]
[1764095299801,0.6801,2953.8,2953.4,0.001]
[1764095300094,0.0851,2953.5,2953.4,0.001]
[1764095300470,0.216,2953.8,2953.4,0.4721]